bitfinex/quotes_BTCUSD_20250727
["timestamp","ask_amount","ask_price","bid_price","bid_amount"]
[1753633539377,0.69315645,119470.0,119460.0,0.24253691]
[1753633539579,0.69315645,119470.0,119460.0,0.2592787]
[1753633540221,0.69315645,119470.0,119460.0,0.26764928]
[1753633540915,1.11466597,119470.0,119460.0,0.00183802]
[1753633541153,1.01910597,119470.0,119460.0,0.00183802]
[1753633541370,0.78353627,119470.0,119460.0,0.00183802]
[1753633546402,0.42200657,119470.0,119460.0,0.00183802]
[1753633546592,0.78353627,119470.0,119460.0,0.05176802]
[1753633546942,0.75313627,119470.0,119460.0,0.05176802]
[1753633548399,0.78353627,119470.0,119460.0,0.00183802]
[1753633550311,0.42200657,119470.0,119460.0,0.00183802]
[1753633550530,0.78353627,119470.0,119460.0,0.00183802]
[1753633551156,1.14506597,119470.0,119460.0,0.00183802]
[1753633551374,0.78353627,119470.0,119460.0,0.00183802]
[1753633551789,0.79187841,119470.0,119460.0,0.00183802]
[1753633552480,0.42200657,119470.0,119460.0,0.06948844]
[1753633552694,0.78353627,119470.0,119460.0,0.00183802]
[1753633552910,0.42200657,119470.0,119460.0,0.00183802]
[1753633553350,0.78353627,119470.0,119460.0,0.00183802]
[1753633553810,1.67834027,119470.0,119460.0,0.00183802]
[1753633554038,1.57229327,119470.0,119460.0,0.00183802]
[1753633554736,1.57229327,119470.0,119460.0,1e-08]
[1753633554953,1.57329327,119470.0,119460.0,1e-08]
[1753633555211,1.93482297,119470.0,119460.0,1e-08]
[1753633555851,1.94339931,119470.0,119460.0,1e-08]
[1753633556518,1.58624497,119470.0,119460.0,1e-08]
[1753633556728,1.58524497,119470.0,119460.0,1e-08]
[1753633556935,1.18377702,119470.0,119460.0,1e-08]
[1753633557156,1.18577702,119470.0,119460.0,1e-08]
[1753633557826,1.01611189,119470.0,119460.0,1e-08]
[1753633558049,1.65929479,119470.0,119460.0,1e-08]
[1753633558710,1.66129479,119470.0,119460.0,1e-08]
[1753633558930,1.65929479,119470.0,119460.0,1e-08]
[1753633559406,1.66329479,119470.0,119460.0,1e-08]
[1753633559626,1.23105988,119450.0,119440.0,9.61301876]
[1753633559851,1.36204988,119450.0,119440.0,9.61301876]
[1753633560080,1.49494718,119450.0,119440.0,9.61301876]
[1753633560972,1.49594718,119450.0,119440.0,9.61301876]
[1753633561633,1.49594718,119450.0,119440.0,9.20784014]
[1753633561865,1.5633962,119450.0,119440.0,8.86748799]
[1753633562091,1.6385522,119450.0,119440.0,8.75501366]
[1753633562328,1.6385522,119450.0,119440.0,8.65395711]
[1753633562554,1.7230295,119450.0,119440.0,8.34858392]
[1753633562771,1.7220295,119450.0,119440.0,8.09008145]
[1753633563178,1.7250295,119450.0,119440.0,7.88420108]
[1753633563421,1.7240295,119450.0,119440.0,7.67724488]
[1753633563638,1.7240295,119450.0,119440.0,7.45858408]
[1753633563862,1.7220295,119450.0,119440.0,7.27756778]
[1753633564159,7.05062095,119450.0,119440.0,7.00109255]
[1753633564442,7.20062095,119450.0,119440.0,6.5591489]
[1753633564742,7.20062095,119450.0,119440.0,5.60106981]
[1753633565033,7.29067743,119450.0,119440.0,5.24526622]
[1753633565257,7.27380753,119450.0,119440.0,5.09306625]
[1753633565485,7.27967417,119450.0,119440.0,4.7565805]
[1753633565751,7.38423419,119450.0,119440.0,4.52711616]
[1753633565998,7.40576192,119450.0,119440.0,3.99699975]
[1753633566223,7.43076192,119450.0,119440.0,3.96989778]
[1753633566440,7.43076192,119450.0,119440.0,3.70115786]
[1753633566689,7.43376192,119450.0,119440.0,3.46211623]
[1753633566906,7.40523419,119450.0,119440.0,3.32323295]
[1753633567092,7.40523419,119450.0,119440.0,3.08826656]
[1753633567304,7.41018692,119450.0,119440.0,2.93569797]
[1753633567538,7.41018692,119450.0,119440.0,2.75171949]
[1753633567778,7.41018692,119450.0,119440.0,2.19826799]
[1753633568051,7.41018692,119450.0,119440.0,2.03934807]
[1753633568279,5.79165684,119430.0,119420.0,0.003]
[1753633568512,6.63003773,119430.0,119420.0,1e-08]
[1753633568742,5.77423866,119410.0,119400.0,1e-08]
[1753633568972,6.65040788,119410.0,119400.0,1e-08]
[1753633569199,6.69867788,119410.0,119400.0,1e-08]
[1753633569437,0.62331001,119390.0,119380.0,1e-08]
[1753633569678,0.62545001,119390.0,119380.0,1e-08]
[1753633569911,0.47281314,119390.0,119380.0,1e-08]
[1753633570053,0.65000314,119390.0,119380.0,1e-08]
[1753633570500,5.65000314,119390.0,119380.0,1e-08]
[1753633570876,5.99000314,119390.0,119380.0,1e-08]
[1753633571080,5.99100314,119390.0,119380.0,1e-08]
[1753633571305,6.14100314,119390.0,119380.0,1e-08]
[1753633571523,6.15557374,119390.0,119380.0,1e-08]
[1753633571764,6.1872525,119390.0,119380.0,1e-08]
[1753633571968,6.18718787,119390.0,119380.0,1e-08]
[1753633572303,0.24338721,119360.0,119350.0,0.04946]
[1753633572523,1.15479839,119360.0,119350.0,0.0515215]
[1753633572720,1.3359115,119360.0,119350.0,0.0515215]
[1753633572980,0.72941549,119360.0,119350.0,0.1146215]
[1753633573191,1.05100694,119360.0,119350.0,0.1146215]
[1753633573426,1.37259839,119360.0,119350.0,0.0515215]
[1753633573624,1.37259839,119360.0,119330.0,1e-08]
[1753633573625,0.34837927,119340.0,119330.0,1e-08]
[1753633573876,0.60044497,119340.0,119330.0,0.00206197]
[1753633574095,0.72940497,119340.0,119330.0,0.06516197]
[1753633574290,1.05099642,119340.0,119330.0,0.06516197]
[1753633574942,1.05099642,119340.0,119330.0,0.06616197]
[1753633575617,1.05099642,119340.0,119330.0,0.11522197]
[1753633576486,0.92203642,119340.0,119330.0,0.11522197]
[1753633576681,0.52433115,119350.0,119340.0,0.0631]
[1753633576941,0.65325143,119350.0,119340.0,0.11414]
[1753633577149,1.09844082,119350.0,119340.0,0.11414]
[1753633577369,0.51596767,119340.0,119330.0,0.11030197]
[1753633577585,0.51596767,119340.0,119330.0,0.11228197]
[1753633577586,1.05095642,119340.0,119330.0,0.11228197]
[1753633577798,1.10177642,119340.0,119330.0,0.06418197]
[1753633578008,1.09873642,119340.0,119330.0,0.06616197]
[1753633578245,1.13757372,119340.0,119330.0,0.11128197]
[1753633578478,0.73774417,119340.0,119330.0,0.11422197]
[1753633578964,0.73774417,119340.0,119330.0,0.11622197]
[1753633579198,0.00837913,119340.0,119330.0,0.11422197]
[1753633579411,0.1466784,119340.0,119330.0,0.43521342]
[1753633579624,0.15505732,119340.0,119330.0,0.11362197]
[1753633579852,0.16343659,119340.0,119330.0,0.11362197]
[1753633580067,0.15505725,119340.0,119330.0,0.11362197]
[1753633580277,0.16343652,119340.0,119330.0,0.11362197]
[1753633580477,0.16343652,119340.0,119330.0,0.43521342]
[1753633580902,0.16343702,119340.0,119330.0,0.43521342]
[1753633581327,0.31426709,119340.0,119330.0,0.11362197]
[1753633582002,0.30488782,119340.0,119330.0,0.11562197]
[1753633582641,0.30488782,119340.0,119330.0,0.11662197]
[1753633583097,0.00837899,119340.0,119330.0,0.37571342]
[1753633583337,0.34837815,119350.0,119340.0,0.0625]
[1753633583556,0.34837773,119360.0,119350.0,0.0625]
[1753633583777,0.50128687,119360.0,119350.0,0.38607145]
[1753633584003,0.01553162,119360.0,119350.0,0.60270581]
[1753633584263,0.01137682,119370.0,119360.0,0.0622]
[1753633584469,0.14045668,119370.0,119360.0,0.55135177]
[1753633584727,0.14883343,119370.0,119360.0,0.61076971]
[1753633584954,0.003,119370.0,119360.0,0.62752531]
[1753633585172,0.003,119370.0,119360.0,0.63590283]
[1753633585398,0.13212,119370.0,119360.0,0.31431152]
[1753633585632,0.13212,119370.0,119360.0,0.64428056]
[1753633585865,0.13212,119370.0,119360.0,0.61914737]
[1753633586100,0.13212,119370.0,119360.0,0.29755592]
[1753633586336,0.13212,119370.0,119360.0,0.43583145]
[1753633586563,0.13212,119370.0,119360.0,0.61176978]
[1753633586794,0.13212,119370.0,119360.0,0.63690297]
[1753633587017,0.13212,119370.0,119360.0,0.306934]
[1753633587288,0.13212,119370.0,119360.0,0.30693407]
[1753633587509,0.13212,119370.0,119360.0,0.3236889]
[1753633587727,0.13212,119370.0,119360.0,0.30693379]
[1753633587939,0.13212,119370.0,119360.0,0.31631145]
[1753633588188,0.13212,119370.0,119360.0,0.30793379]
[1753633588620,0.14049675,119370.0,119360.0,0.29117826]
[1753633589094,0.16562791,119370.0,119360.0,0.11524]
[1753633589305,0.15725067,119370.0,119360.0,0.11524]
[1753633589512,0.33317412,119370.0,119360.0,0.11524]
[1753633589742,0.332026,119370.0,119360.0,0.1123]
[1753633589963,0.334186,119370.0,119360.0,0.1123]
[1753633590198,1.16591233,119370.0,119360.0,0.0642]
[1753633590417,0.8516433,119370.0,119360.0,0.002]
[1753633590634,0.7586633,119370.0,119360.0,0.0641]
[1753633590854,0.15610199,119370.0,119360.0,0.1594]
[1753633591139,0.13212,119370.0,119360.0,0.32696032]
[1753633591354,0.13212,119370.0,119360.0,0.66636254]
[1753633591355,0.003,119370.0,119360.0,0.66636254]
[1753633591565,0.13212,119370.0,119360.0,0.66636254]
[1753633592704,0.003,119370.0,119360.0,0.66636254]
[1753633594035,0.003,119370.0,119360.0,0.75083984]
[1753633594707,0.003,119370.0,119360.0,0.74983984]
[1753633594930,0.003,119370.0,119360.0,0.74883984]
[1753633595167,0.003,119370.0,119360.0,0.75383984]
[1753633595587,0.003,119370.0,119360.0,0.75183984]
[1753633597015,0.003,119370.0,119360.0,0.74883984]
[1753633597252,0.003,119370.0,119360.0,0.75483984]
[1753633598190,0.003,119370.0,119360.0,0.75883984]
[1753633603781,0.003,119370.0,119360.0,0.44457081]
[1753633603960,0.003,119370.0,119360.0,0.75883984]
[1753633608435,0.003,119370.0,119360.0,0.44457081]
[1753633608754,0.003,119370.0,119360.0,0.75883984]
[1753633608981,0.003,119370.0,119360.0,1.08804199]
[1753633611777,0.003,119370.0,119360.0,0.7663064]
[1753633612431,0.003,119370.0,119360.0,1.08804199]
[1753633614256,0.003,119370.0,119360.0,0.7663064]
[1753633615787,0.003,119370.0,119360.0,1.20804199]
[1753633616040,0.003,119370.0,119360.0,1.21804199]
[1753633616923,0.003,119370.0,119360.0,1.34858701]
[1753633617360,0.003,119370.0,119360.0,1.81742701]
[1753633617809,0.003,119370.0,119360.0,1.70683101]
[1753633618274,0.003,119370.0,119360.0,1.84511001]
[1753633619597,0.003,119370.0,119360.0,1.71627001]
[1753633619808,0.003,119370.0,119360.0,1.70683101]
[1753633620265,0.003,119370.0,119360.0,1.85207701]
[1753633620481,0.003,119370.0,119360.0,1.75707101]
[1753633621379,0.003,119370.0,119360.0,1.55804199]
[1753633621617,0.09581,119370.0,119360.0,0.34089329]
[1753633621851,0.09581,119370.0,119360.0,0.37687819]
[1753633622040,0.10418675,119370.0,119360.0,0.01]
[1753633622331,0.11256357,119370.0,119360.0,0.01]
[1753633622567,0.09581,119370.0,119360.0,0.71610924]
[1753633622793,0.09581,119370.0,119360.0,0.72448676]
[1753633623017,0.09256,119370.0,119360.0,0.81141676]
[1753633623755,0.003,119370.0,119360.0,1.35056965]
[1753633623965,0.003,119370.0,119360.0,1.33056965]
[1753633624467,0.003,119370.0,119360.0,1.32056965]
[1753633624700,0.003,119370.0,119360.0,1.34056965]
[1753633624903,0.003,119370.0,119360.0,1.22056965]
[1753633625147,0.00507,119370.0,119360.0,0.76701406]
[1753633625374,0.60184614,119370.0,119360.0,0.01]
[1753633625595,0.67878402,119370.0,119360.0,0.01]
[1753633625826,0.11256427,119370.0,119360.0,0.01]
[1753633626038,0.11256357,119370.0,119360.0,0.01837801]
[1753633626265,0.12094067,119370.0,119360.0,0.01]
[1753633626532,0.12094067,119370.0,119360.0,0.01237801]
[1753633626787,0.28011055,119370.0,119360.0,0.004]
[1753633627018,0.35675581,119360.0,119340.0,0.25542564]
[1753633627258,0.09281,119350.0,119340.0,0.19272564]
[1753633627752,0.18434687,119340.0,119330.0,0.0314208]
[1753633627992,0.18641687,119340.0,119330.0,0.0636208]
[1753633628238,0.93889246,119340.0,119330.0,0.0009208]
[1753633628480,0.61715687,119340.0,119330.0,0.0009208]
[1753633628710,0.64232887,119340.0,119330.0,0.0009208]
[1753633629680,0.64232887,119340.0,119330.0,0.0029208]
[1753633630158,0.64232887,119340.0,119330.0,0.38988639]
[1753633630159,0.10956798,119340.0,119330.0,0.38988639]
[1753633630426,0.09281,119340.0,119330.0,0.0681508]
[1753633630660,0.09074,119350.0,119340.0,0.0632]
[1753633630895,0.09281,119350.0,119340.0,0.71106138]
[1753633631373,0.11794459,119350.0,119340.0,0.1966]
[1753633631623,0.12632309,119350.0,119340.0,0.20497942]
[1753633631851,0.11794459,119350.0,119340.0,0.70268261]
[1753633632068,0.10956623,119350.0,119340.0,0.71206174]
[1753633632295,0.11794452,119350.0,119340.0,0.72144073]
[1753633632519,0.11794452,119350.0,119340.0,0.39970514]
[1753633632774,0.11794452,119350.0,119340.0,0.72144073]
[1753633632996,0.10956623,119350.0,119340.0,0.39132615]
[1753633633224,0.11794452,119350.0,119340.0,0.39970507]
[1753633633490,0.11794452,119350.0,119340.0,0.39970514]
[1753633633705,0.12632295,119350.0,119340.0,0.39132615]
[1753633633935,0.61714129,119350.0,119340.0,0.002]
[1753633634461,0.44956693,119350.0,119340.0,0.002]
[1753633634701,0.44118815,119350.0,119340.0,0.19272607]
[1753633634937,0.44118815,119350.0,119340.0,0.23400506]
[1753633635167,0.44956637,119350.0,119340.0,0.24000499]
[1753633635619,0.44118815,119350.0,119340.0,0.24000499]
[1753633636320,0.44118815,119350.0,119340.0,0.27030499]
[1753633636775,0.43281,119350.0,119340.0,0.27030499]
[1753633637013,0.09281,119350.0,119340.0,0.27030499]
[1753633637513,0.10118815,119350.0,119340.0,0.26192607]
[1753633637747,0.10956637,119350.0,119340.0,0.27030506]
[1753633638242,0.10956637,119350.0,119340.0,0.27868398]
[1753633638712,0.09281,119350.0,119340.0,0.27868398]
[1753633639417,0.09281,119350.0,119340.0,0.28071398]
[1753633639662,0.08956,119350.0,119340.0,0.36561398]
[1753633639886,0.09793815,119350.0,119340.0,0.28071398]
[1753633640115,0.10956644,119350.0,119340.0,0.27868398]
[1753633640346,0.10956644,119350.0,119340.0,0.25354701]
[1753633640595,0.11794494,119350.0,119340.0,0.19872621]
[1753633640830,0.10956644,119350.0,119340.0,0.19872621]
[1753633641102,0.62551986,119350.0,119340.0,0.006]
[1753633641320,0.62551979,119350.0,119340.0,0.13948]
[1753633641540,0.62551979,119350.0,119340.0,0.006]
[1753633642239,0.45794487,119350.0,119340.0,0.19034687]
[1753633642480,0.4579448,119350.0,119340.0,0.19872593]
[1753633642715,0.4579448,119350.0,119340.0,0.19034687]
[1753633643184,0.46632337,119350.0,119340.0,0.19034694]
[1753633643413,0.46632337,119350.0,119340.0,0.19034701]
[1753633643896,0.4495663,119350.0,119340.0,0.2071052]
[1753633644133,0.45794445,119350.0,119340.0,0.21548412]
[1753633644823,0.46632281,119350.0,119340.0,0.2071052]
[1753633645047,0.47470131,119350.0,119340.0,0.19872621]
[1753633645268,0.47470131,119350.0,119340.0,0.20710534]
[1753633645498,0.47470131,119350.0,119340.0,0.2154844]
[1753633645499,0.46632281,119350.0,119340.0,0.2154844]
[1753633645739,0.45794445,119350.0,119340.0,0.21548398]
[1753633646147,0.44956623,119350.0,119340.0,0.21548398]
[1753633646369,0.45794452,119350.0,119340.0,0.21548398]
[1753633646587,0.45794452,119350.0,119340.0,0.198726]
[1753633646802,0.4579448,119350.0,119340.0,0.23132586]
[1753633647233,0.44956644,119350.0,119340.0,0.23970478]
[1753633647729,0.4579448,119350.0,119340.0,0.23970478]
[1753633648316,0.4579448,119350.0,119340.0,0.23132586]
[1753633648868,0.44118815,119350.0,119340.0,0.23970478]
[1753633649285,0.44118815,119350.0,119340.0,0.27270478]
[1753633649440,0.56584,119360.0,119350.0,0.25740965]
[1753633649663,0.6087531,119360.0,119350.0,0.25740972]
[1753633649862,0.60037544,119360.0,119350.0,0.26578794]
[1753633650326,0.6087531,119360.0,119350.0,0.25740972]
[1753633650539,0.60875317,119360.0,119350.0,0.26578794]
[1753633650758,0.60875317,119360.0,119350.0,0.25740972]
[1753633650962,0.60875317,119360.0,119350.0,0.241653]
[1753633650963,0.49246905,119360.0,119350.0,0.241653]
[1753633651192,0.61705104,119360.0,119350.0,0.26040993]
[1753633651578,0.77623398,119360.0,119350.0,0.23527436]
[1753633651831,0.7762344,119360.0,119350.0,0.0677]
[1753633651996,0.00837822,119350.0,119340.0,0.26664326]
[1753633652224,0.10329822,119350.0,119340.0,0.25826448]
[1753633652475,0.10329829,119350.0,119340.0,0.25826448]
[1753633652683,0.09492,119350.0,119340.0,0.25826448]
[1753633653500,0.09492,119350.0,119340.0,0.66410017]
[1753633653717,0.09189,119350.0,119340.0,0.66410017]
[1753633653934,0.09189,119350.0,119340.0,0.58221024]
[1753633654141,0.23318815,119350.0,119340.0,0.66410024]
[1753633654352,0.26025698,119350.0,119340.0,0.58224024]
[1753633654562,0.25187869,119350.0,119340.0,0.58224024]
[1753633654800,0.24350054,119350.0,119340.0,0.58424024]
[1753633655055,0.11058054,119350.0,119340.0,0.58424024]
[1753633655278,0.2278,119350.0,119340.0,0.58424024]
[1753633655486,0.24346054,119350.0,119340.0,0.58424024]
[1753633655693,0.11895862,119350.0,119340.0,0.58424024]
[1753633655908,0.22772,119350.0,119340.0,0.58424024]
[1753633656222,0.24338054,119350.0,119340.0,0.58424024]
[1753633656444,0.25175862,119350.0,119340.0,0.58424024]
[1753633656647,0.24338054,119350.0,119340.0,0.58424024]
[1753633657288,0.24334054,119350.0,119340.0,0.58621024]
[1753633657499,0.24334054,119350.0,119340.0,0.66810024]
[1753633657705,0.11058054,119350.0,119340.0,0.66610024]
[1753633657917,0.22764,119350.0,119340.0,0.66610024]
[1753633658136,0.22764,119350.0,119340.0,0.66910024]
[1753633658137,0.11058054,119350.0,119340.0,0.66910024]
[1753633658348,0.22764,119350.0,119340.0,0.66910024]
[1753633658572,0.24330054,119350.0,119340.0,0.66910024]
[1753633658825,0.11058054,119350.0,119340.0,0.66910024]
[1753633659019,0.2276,119350.0,119340.0,0.66910024]
[1753633659217,0.24326054,119350.0,119340.0,0.66910024]
[1753633659431,0.24326054,119350.0,119340.0,0.66610024]
[1753633659655,0.2276,119350.0,119340.0,0.66810024]
[1753633660324,0.2276,119350.0,119340.0,0.34612455]
[1753633660541,0.2276,119350.0,119340.0,0.66810024]
[1753633661260,0.23597808,119350.0,119340.0,0.66810024]
[1753633661679,0.2276,119350.0,119340.0,0.66810024]
[1753633662525,0.23597815,119350.0,119340.0,0.66810024]
[1753633662741,0.23597815,119350.0,119340.0,0.58621024]
[1753633662954,0.2276,119350.0,119340.0,0.58621024]
[1753633663181,0.23597815,119350.0,119340.0,0.26423455]
[1753633663391,0.2276,119350.0,119340.0,0.58621024]
[1753633663611,0.2276,119350.0,119340.0,0.66810024]
[1753633664779,0.23597815,119350.0,119340.0,0.66810024]
[1753633664990,0.2276,119350.0,119340.0,0.66810024]
[1753633665199,0.23597822,119350.0,119340.0,0.58621024]
[1753633665411,0.26111372,119350.0,119340.0,0.2371273]
[1753633665628,0.25273501,119350.0,119340.0,0.25388563]
[1753633665837,0.25273501,119350.0,119340.0,0.26226455]
[1753633666048,0.26111365,119350.0,119340.0,0.26226483]
[1753633666253,0.26111358,119350.0,119340.0,0.27064382]
[1753633666474,0.26111358,119350.0,119340.0,0.27902274]
[1753633666713,0.26111358,119350.0,119340.0,0.26226483]
[1753633666928,0.26917222,119350.0,119340.0,0.26226483]
[1753633667137,0.260794,119350.0,119340.0,0.25388577]
[1753633667344,0.128434,119350.0,119340.0,0.25388577]
[1753633667553,0.25237536,119350.0,119340.0,0.25388577]
[1753633668277,0.25237536,119350.0,119340.0,0.27064382]
[1753633668493,0.24399679,119350.0,119340.0,0.27902274]
[1753633669248,0.2523748,119350.0,119340.0,0.27902274]
[1753633669456,0.24399623,119350.0,119340.0,0.27902274]
[1753633669664,0.09492,119350.0,119340.0,0.68288843]
[1753633669892,0.45385905,119360.0,119350.0,0.25780972]
[1753633670097,0.60501458,119360.0,119350.0,0.25780972]
[1753633670315,0.59233298,119360.0,119350.0,0.25780972]
[1753633670531,0.59233291,119360.0,119350.0,0.25780972]
[1753633670738,0.77664918,119360.0,119350.0,0.25780993]
[1753633670980,0.59233291,119360.0,119350.0,0.26618822]
[1753633671198,0.60071085,119360.0,119350.0,0.26618822]
[1753633671433,0.60908886,119360.0,119350.0,0.25780993]
[1753633671641,0.46843085,119360.0,119350.0,0.25780993]
[1753633671862,0.59237291,119360.0,119350.0,0.27456644]
[1753633672517,0.60075085,119360.0,119350.0,0.25880993]
[1753633672730,0.60075085,119360.0,119350.0,0.26718822]
[1753633672883,0.60075085,119360.0,119350.0,0.25880993]
[1753633673285,0.60075085,119360.0,119350.0,0.26718822]
[1753633673507,0.76831117,119360.0,119350.0,0.25881]
[1753633673701,0.76831117,119360.0,119350.0,0.25881007]
[1753633673926,0.60075085,119360.0,119350.0,0.2671885]
[1753633674162,0.59237291,119360.0,119350.0,0.27556672]
[1753633674377,0.60075078,119360.0,119350.0,0.27556637]
[1753633674841,0.60075078,119360.0,119350.0,0.26718815]
[1753633675071,0.76831166,119360.0,119350.0,0.25043143]
[1753633675323,0.759934,119360.0,119350.0,0.24205293]
[1753633675513,0.759934,119360.0,119350.0,0.25043143]
[1753633675759,0.759934,119360.0,119350.0,0.25880986]
[1753633675959,0.759934,119360.0,119350.0,0.26718822]
[1753633676235,0.59237361,119360.0,119350.0,0.27556651]
[1753633676479,0.59237361,119360.0,119350.0,0.26718822]
[1753633676698,0.75993393,119360.0,119350.0,0.25880986]
[1753633676884,0.75965393,119360.0,119350.0,0.25043143]
[1753633677098,0.75965393,119360.0,119350.0,0.25880979]
[1753633677311,0.59209361,119360.0,119350.0,0.26718808]
[1753633677526,0.58371567,119360.0,119350.0,0.26718808]
[1753633677938,0.59201368,119360.0,119350.0,0.26718808]
[1753633678151,0.59201368,119360.0,119350.0,0.26918808]
[1753633678372,0.58363567,119360.0,119350.0,0.26918808]
[1753633678544,0.75957393,119360.0,119350.0,0.26080979]
[1753633678745,0.75957393,119360.0,119350.0,0.58178548]
[1753633678893,0.59201361,119360.0,119350.0,0.26818801]
[1753633679112,0.75957393,119360.0,119350.0,0.26180979]
[1753633679336,0.59201361,119360.0,119350.0,0.59216377]
[1753633679549,0.59201361,119360.0,119350.0,0.59854199]
[1753633679763,0.59201361,119360.0,119350.0,0.58178548]
[1753633679993,0.59201361,119360.0,119350.0,0.59216377]
[1753633680206,0.59201361,119360.0,119350.0,0.60054199]
[1753633680421,0.76795194,119360.0,119350.0,0.25343143]
[1753633680646,0.59201361,119360.0,119350.0,0.59216384]
[1753633680919,0.58363539,119360.0,119350.0,0.60054206]
[1753633681133,0.59201326,119360.0,119350.0,0.60054206]
[1753633681350,0.59201326,119360.0,119350.0,0.59216384]
[1753633681351,0.6003912,119360.0,119350.0,0.59216384]
[1753633681559,0.75957393,119360.0,119350.0,0.58378555]
[1753633682010,0.59201361,119360.0,119350.0,0.27018815]
[1753633682223,0.75957393,119360.0,119350.0,0.27018815]
[1753633682422,0.76795194,119360.0,119350.0,0.27018815]
[1753633682679,0.76795194,119360.0,119350.0,0.24505293]
[1753633682865,0.75119627,119360.0,119350.0,0.23667436]
[1753633683103,0.74281833,119360.0,119350.0,0.24505307]
[1753633683712,0.74281833,119360.0,119350.0,0.25343171]
[1753633684677,0.74281833,119360.0,119350.0,0.26181028]
[1753633685324,0.74281833,119360.0,119350.0,0.27018878]
[1753633685537,0.75119613,119360.0,119350.0,0.27856721]
[1753633686463,0.75119613,119360.0,119350.0,0.27856686]
[1753633686719,0.75119613,119360.0,119350.0,0.2701885]
[1753633686936,0.75119613,119360.0,119350.0,0.26181007]
[1753633687354,0.61923613,119360.0,119350.0,0.26181007]
[1753633687554,0.75079613,119360.0,119350.0,0.26181007]
[1753633687802,0.75079613,119360.0,119350.0,0.2701885]
[1753633688849,0.75079613,119360.0,119350.0,0.26181007]
[1753633689342,0.74241833,119360.0,119350.0,0.25343157]
[1753633689559,0.74241833,119360.0,119350.0,0.245053]
[1753633689773,0.74241833,119360.0,119350.0,0.25343157]
[1753633689995,0.74241833,119360.0,119350.0,0.2701885]
[1753633690635,0.74241833,119360.0,119350.0,0.26181007]
[1753633690864,0.74241833,119360.0,119350.0,0.27018843]
[1753633691084,0.59161326,119360.0,119350.0,0.2785663]
[1753633691430,0.76755152,119360.0,119350.0,0.25343143]
[1753633691612,0.76755152,119360.0,119350.0,0.26180986]
[1753633691867,0.75917393,119360.0,119350.0,0.26180986]
[1753633693118,0.75079613,119360.0,119350.0,0.26180986]
[1753633693605,0.75079613,119360.0,119350.0,0.27018822]
[1753633693823,0.75079613,119360.0,119350.0,0.23667436]
[1753633694046,0.75079613,119360.0,119350.0,0.24505286]
[1753633694358,0.74241826,119360.0,119350.0,0.23667436]
[1753633694569,0.74241826,119360.0,119350.0,0.24505286]
[1753633694794,0.74241826,119360.0,119350.0,0.25343157]
[1753633695012,0.74241826,119360.0,119350.0,0.26181007]
[1753633695228,0.74241826,119360.0,119350.0,0.25343157]
[1753633695416,0.74225826,119360.0,119350.0,0.26181007]
[1753633695676,0.74225826,119360.0,119350.0,0.2701885]
[1753633696312,0.74225826,119360.0,119350.0,0.27856686]
[1753633696543,0.74225826,119360.0,119350.0,0.2701885]
[1753633696726,0.74225826,119360.0,119350.0,0.27856679]
[1753633698102,0.58307567,119360.0,119350.0,0.27856637]
[1753633698322,0.58299567,119360.0,119350.0,0.27856637]
[1753633698562,0.758934,119360.0,119350.0,0.27018815]
[1753633698695,0.758934,119360.0,119350.0,0.26180986]
[1753633699645,0.758934,119360.0,119350.0,0.27018822]
[1753633699780,0.758934,119360.0,119350.0,0.27856651]
[1753633699981,0.758934,119360.0,119350.0,0.24505293]
[1753633700206,0.75055627,119360.0,119350.0,0.24505293]
[1753633700979,0.75055627,119360.0,119350.0,0.25343143]
[1753633701718,0.74217833,119360.0,119350.0,0.24505293]
[1753633702373,0.74217833,119360.0,119350.0,0.25343143]
[1753633703031,0.74217833,119360.0,119350.0,0.26180986]
[1753633703678,0.74217833,119360.0,119350.0,0.24505293]
[1753633703876,1.05577601,119360.0,119350.0,0.0691]
[1753633704079,0.73380032,119360.0,119350.0,0.23667436]
[1753633704279,0.73380032,119360.0,119350.0,0.0691]
[1753633705229,1.14025331,119360.0,119350.0,0.0691]
[1753633705725,0.81827762,119360.0,119350.0,0.0691]
[1753633708459,0.81827762,119360.0,119350.0,0.0671]
[1753633708959,1.14025331,119360.0,119350.0,0.0681]
[1753633709180,1.00893331,119360.0,119350.0,0.0661]
[1753633709425,1.13985331,119360.0,119350.0,0.0661]
[1753633709671,1.14422867,119360.0,119350.0,0.0661]
[1753633712671,1.14422867,119360.0,119350.0,0.06693889]
[1753633712860,1.18453096,119360.0,119350.0,0.06693889]
[1753633715513,0.82225298,119360.0,119350.0,0.06693889]
[1753633715724,1.18453096,119360.0,119350.0,0.06693889]
[1753633716179,0.69133298,119360.0,119350.0,0.23451325]
[1753633716422,0.34,119360.0,119350.0,0.77986694]
[1753633716626,0.47905745,119360.0,119350.0,0.77986694]
[1753633716846,0.47068,119360.0,119350.0,0.73939394]
[1753633717304,0.47909738,119360.0,119350.0,0.73939394]
[1753633717528,0.4874749,119360.0,119350.0,0.73939394]
[1753633717746,0.48747483,119360.0,119350.0,0.73939394]
[1753633718372,0.48743483,119360.0,119350.0,0.73939394]
[1753633718834,0.48743483,119360.0,119350.0,0.67174352]
[1753633719577,0.47068,119360.0,119350.0,0.67174352]
[1753633720050,0.003,119370.0,119360.0,0.25529351]
[1753633720290,0.003,119370.0,119360.0,0.38789351]
[1753633720505,0.003,119370.0,119360.0,0.79798849]
[1753633721808,0.003,119370.0,119360.0,0.79898849]
[1753633723178,0.003,119370.0,119360.0,0.47718351]
[1753633723352,0.003,119370.0,119360.0,0.80098849]
[1753633726383,0.003,119370.0,119360.0,0.67038849]
[1753633726583,0.003,119370.0,119360.0,0.47894351]
[1753633726961,0.003,119370.0,119360.0,0.80074849]
[1753633728819,0.003,119370.0,119360.0,0.47894351]
[1753633729030,0.003,119370.0,119360.0,0.80074849]
[1753633729771,0.003,119370.0,119360.0,0.79874849]
[1753633730209,0.003,119370.0,119360.0,0.80074849]
[1753633730865,0.003,119370.0,119360.0,0.79774849]
[1753633731082,0.003,119370.0,119360.0,0.79874849]
[1753633731502,0.003,119370.0,119360.0,0.79774849]
[1753633731765,0.003,119370.0,119360.0,0.47794351]
[1753633731996,0.003,119370.0,119360.0,0.79974849]
[1753633732664,0.003,119370.0,119360.0,0.80174849]
[1753633734026,0.003,119370.0,119360.0,0.47994351]
[1753633734261,0.003,119370.0,119360.0,0.80174849]
[1753633734707,0.003,119370.0,119360.0,0.67138849]
[1753633734922,0.003,119370.0,119360.0,0.24453826]
[1753633734923,0.11016109,119370.0,119360.0,0.24453826]
[1753633735198,0.10178385,119370.0,119360.0,0.38953351]
[1753633735918,0.10178378,119370.0,119360.0,0.46604351]
[1753633736145,0.10178378,119370.0,119360.0,0.46404351]
[1753633736375,0.08503,119370.0,119360.0,0.46611351]